bitfinex/quotes_SOLUSD_20260223
["timestamp","ask_amount","ask_price","bid_price","bid_amount"]
[1771863901193,0.8130643,79.512,79.482,0.85130808]
[1771863901586,0.5,79.519,79.482,0.85130808]
[1771863901789,0.8130643,79.531,79.502,44.0240497]
[1771863901997,13.88551495,79.539,79.503,0.85130808]
[1771863902197,0.8130643,79.528,79.502,12.57829991]
[1771863902499,0.8130643,79.527,79.502,12.57829991]
[1771863903006,0.8130643,79.527,79.502,13.42960799]
[1771863903303,12.5741877,79.528,79.503,0.85130808]
[1771863903801,0.8130643,79.535,79.503,0.85130808]
[1771863904001,0.8130643,79.535,79.505,0.85130808]
[1771863905089,0.5,79.539,79.505,0.85130808]
[1771863905291,0.8130643,79.562,79.522,0.76272973]
[1771863905606,0.8130643,79.58,79.55,15.0955227]
[1771863905894,0.8863956,79.589,79.55,14.33279297]
[1771863906104,0.8863956,79.589,79.53,5.36086188]
[1771863906105,0.8863956,79.587,79.531,44.29232001]
[1771863906401,0.8863956,79.615,79.58,14.33279297]
[1771863906578,12.56028938,79.616,79.55,14.33279297]
[1771863906579,0.8863956,79.599,79.55,14.33279297]
[1771863906997,0.8863956,79.599,79.537,3.69383402]
[1771863906998,0.8863956,79.599,79.56,14.33279297]
[1771863907584,43.96101285,79.616,79.57,14.33279297]
[1771863907795,0.8863956,79.628,79.59,14.33279297]
[1771863907981,12.55855425,79.627,79.581,12.56581344]
[1771863908299,0.8863956,79.626,79.581,12.56581344]
[1771863908503,0.8863956,79.626,79.6,14.33279297]
[1771863908688,0.8863956,79.626,79.581,43.98034705]
[1771863908998,0.8863956,79.626,79.581,12.56581344]
[1771863909583,0.8863956,79.626,79.59,14.33279297]
[1771863910002,0.8863956,79.626,79.6,14.33279297]
[1771863910304,0.8863956,79.636,79.601,12.56265624]
[1771863910797,0.8863956,79.636,79.61,14.33279297]
[1771863911008,0.1,79.64,79.62,14.33279297]
[1771863911505,0.1,79.64,79.61,14.33279297]
[1771863911885,0.8863956,79.638,79.61,14.33279297]
[1771863912084,0.8863956,79.638,79.601,43.96929686]
[1771863912393,0.8863956,79.636,79.601,43.96929686]
[1771863912907,0.5,79.626,79.601,43.96929686]
[1771863913110,0.5,79.626,79.61,14.33279297]
[1771863913286,0.5,79.626,79.6,14.33279297]
[1771863913689,0.5,79.616,79.584,3.69383402]
[1771863913893,0.5,79.616,79.6,14.33279297]
[1771863914807,0.1,79.64,79.61,14.33279297]
[1771863915190,0.8863956,79.639,79.61,14.33279297]
[1771863915397,12.65662207,79.64,79.61,14.33279297]
[1771863915398,0.8863956,79.637,79.61,14.33279297]
[1771863915589,0.8863956,79.637,79.607,12.56161929]
[1771863915792,0.8863956,79.637,79.61,14.33279297]
[1771863916926,0.8863956,79.637,79.6,14.33279297]
[1771863917211,0.8863956,79.637,79.595,12.56360324]
[1771863917410,0.8863956,79.619,79.58,14.33279297]
[1771863917615,0.8863956,79.599,79.55,58.33027882]
[1771863917990,0.8863956,79.589,79.547,12.57115752]
[1771863918208,0.8863956,79.579,79.547,12.57115752]
[1771863918393,0.8863956,79.579,79.53,14.33279297]
[1771863918599,0.8863956,79.579,79.534,12.57323911]
[1771863919906,0.8863956,79.569,79.534,12.57323911]
[1771863920114,0.8863956,79.569,79.529,12.57396825]
[1771863920502,0.8863956,79.559,79.5,5.36086188]
[1771863920702,0.8863956,79.559,79.482,50.32533033]
[1771863920703,0.8863956,79.559,79.51,14.33279297]
[1771863920911,0.8863956,79.559,79.52,14.33279297]
[1771863922006,3.69383402,79.577,79.52,14.33279297]
[1771863922007,0.8863956,79.557,79.52,14.33279297]
[1771863922203,0.8863956,79.549,79.5,14.33279297]
[1771863923722,0.8863956,79.549,79.52,14.33279297]
[1771863923916,0.8863956,79.547,79.52,14.33279297]
[1771863924132,0.8863956,79.547,79.517,12.57587561]
[1771863924705,0.8863956,79.556,79.52,14.33279297]
[1771863925421,0.8863956,79.556,79.512,12.57656868]
[1771863925805,0.8863956,79.556,79.52,14.32725096]
[1771863926028,43.98808551,79.567,79.52,14.32725096]
[1771863926029,0.8863956,79.554,79.521,12.57529457]
[1771863926204,0.8863956,79.554,79.53,14.32725096]
[1771863926720,0.8863956,79.549,79.505,12.57782529]
[1771863927122,0.8863956,79.539,79.491,12.57994837]
[1771863927506,0.8863956,79.539,79.51,14.32725096]
[1771863928025,0.8863956,79.552,79.511,12.61103123]
[1771863928822,0.8863956,79.552,79.52,14.32725096]
[1771863929410,0.8863956,79.561,79.53,14.32725096]
[1771863929820,0.8863956,79.57,79.54,14.32725096]
[1771863930014,0.8863956,79.568,79.54,26.89946937]
[1771863930409,0.8863956,79.568,79.53,14.32725096]
[1771863930615,0.8863956,79.568,79.531,12.57371339]
[1771863930811,0.8863956,79.568,79.53,14.32725096]
[1771863931002,0.8863956,79.568,79.523,12.5748899]
[1771863931208,0.8863956,79.568,79.53,14.32725096]
[1771863932129,0.8863956,79.566,79.531,12.57371339]
[1771863932326,0.8863956,79.581,79.56,14.32725096]
[1771863932730,0.8863956,79.581,79.55,14.32725096]
[1771863936017,0.8863956,79.579,79.54,14.32725096]
[1771863936214,58.30815067,79.58,79.522,31.43773266]
[1771863936215,0.8863956,79.569,79.53,26.90107828]
[1771863936419,0.8863956,79.569,79.522,31.43773266]
[1771863936822,0.8863956,79.569,79.52,14.82725096]
[1771863936823,0.8863956,79.559,79.52,0.5]
[1771863937129,0.8863956,79.559,79.52,14.82725096]
[1771863937329,0.8863956,79.559,79.53,14.32725096]
[1771863937526,0.8863956,79.57,79.55,14.32725096]
[1771863937926,12.56628716,79.578,79.551,12.57055222]
[1771863938130,0.8863956,79.577,79.56,14.32725096]
[1771863938527,0.8863956,79.577,79.55,14.32725096]
[1771863938732,0.8863956,79.577,79.551,12.57055222]
[1771863940636,12.56660299,79.576,79.551,12.57055222]
[1771863942925,0.8863956,79.576,79.55,14.32725096]
[1771863943525,0.8863956,79.576,79.551,12.57055222]
[1771863943840,0.8863956,79.588,79.56,14.32725096]
[1771863944134,0.8863956,79.588,79.552,0.05847128]
[1771863944135,0.8863956,79.595,79.57,14.32725096]
[1771863944441,0.8863956,79.595,79.56,14.32725096]
[1771863946172,0.8863956,79.593,79.561,12.56897223]
[1771863946436,0.8863956,79.593,79.57,14.32725096]
[1771863946838,0.8863956,79.593,79.561,12.56897223]
[1771863948321,0.91488487,79.591,79.56,14.32725096]
[1771863948529,0.91488487,79.589,79.54,14.32725096]
[1771863948729,0.91488487,79.589,79.55,14.32725096]
[1771863948936,0.91488487,79.589,79.56,14.32725096]
[1771863949236,0.91488487,79.589,79.57,14.32725096]
[1771863954543,0.91488487,79.587,79.56,14.32725096]
[1771863955247,0.91488487,79.587,79.56,5.34349803]
[1771863958454,0.91488487,79.585,79.56,5.34349803]
[1771863958660,0.91488487,79.579,79.546,12.57134236]
[1771863958956,0.91488487,79.569,79.538,31.43148876]
[1771863959750,0.91488487,79.583,79.541,0.57982734]
[1771863960048,0.91488487,79.583,79.57,0.5]
[1771863960349,31.40945842,79.594,79.57,0.5]
[1771863960548,0.91488487,79.59,79.57,0.5]
[1771863961047,5.34349803,79.59,79.57,0.5]
[1771863961347,0.91488487,79.579,79.541,12.57213261]
[1771863961751,0.91488487,79.569,79.537,12.57261535]
[1771863962131,0.91488487,79.559,79.523,0.5820751]
[1771863962542,0.91488487,79.557,79.525,0.58317966]
[1771863963430,0.91488487,79.549,79.516,13.16035684]
[1771863963632,0.91488487,79.549,79.517,0.58427153]
[1771863964655,0.91488487,79.529,79.493,0.58568452]
[1771863965843,0.91488487,79.529,79.492,12.57988225]
[1771863966977,12.5741877,79.528,79.492,12.57988225]
[1771863967263,0.91488487,79.527,79.493,0.58846199]
[1771863967651,0.91488487,79.534,79.501,0.58982685]
[1771863968691,0.91488487,79.538,79.501,0.59117603]
[1771863968844,0.91488487,79.538,79.51,14.33717838]
[1771863969161,12.57276487,79.537,79.511,13.16805218]
[1771863969454,0.91488487,79.562,79.531,0.59250971]
[1771863969639,0.91488487,79.562,79.54,14.33717838]
[1771863971170,0.91488487,79.57,79.541,12.57213261]
[1771863971471,0.91488487,79.588,79.541,12.57213261]
[1771863971641,0.91488487,79.579,79.541,12.57213261]
[1771863971838,0.91488487,79.579,79.55,14.33717838]
[1771863972040,0.91488487,79.579,79.54,14.33717838]
[1771863972258,0.91488487,79.579,79.532,12.57355529]
[1771863973362,0.91488487,79.577,79.532,12.57355529]
[1771863973660,0.91488487,79.577,79.54,14.33717838]
[1771863974743,0.91488487,79.577,79.55,14.33717838]
[1771863974951,0.5,79.569,79.55,14.33717838]
[1771863975741,0.5,79.569,79.531,31.43419639]
[1771863975742,0.5,79.579,79.56,14.33717838]
[1771863976045,0.5,79.579,79.57,14.33717838]
[1771863976250,12.56439251,79.59,79.57,14.33717838]
[1771863977144,0.91488487,79.589,79.551,43.99693278]
[1771863977345,0.91488487,79.589,79.56,14.33717838]
[1771863977762,12.56470824,79.588,79.57,14.33717838]
[1771863978758,0.85120486,79.587,79.561,12.56897223]
[1771863980164,0.9160667,79.585,79.56,14.33717838]
[1771863980369,0.9160667,79.585,79.531,5.36086188]
[1771863980370,0.9160667,79.579,79.54,14.33717838]
[1771863980572,0.9160667,79.579,79.532,0.60851567]
[1771863980751,0.9160667,79.579,79.54,14.33717838]
[1771863983771,12.56628716,79.578,79.56,14.33717838]
[1771863984873,0.9160667,79.577,79.54,26.90931325]
[1771863985177,0.9160667,79.569,79.534,12.57313163]
[1771863985374,0.9160667,79.569,79.53,14.32548666]
[1771863985760,0.9160667,79.567,79.53,14.32548666]
[1771863985954,0.9160667,79.567,79.513,31.44134838]
[1771863985955,0.9160667,79.559,79.513,0.61405945]
[1771863986161,0.9160667,79.559,79.52,14.32548666]
[1771863986363,0.9160667,79.559,79.53,14.32548666]
[1771863986564,12.56786647,79.568,79.541,0.91485952]
[1771863988181,12.56786647,79.568,79.532,0.91485952]
[1771863988563,0.9160667,79.567,79.532,0.91485952]
[1771863989688,0.9160667,79.559,79.522,0.91485952]
[1771863989894,0.9160667,79.559,79.541,0.5]
[1771863990479,12.56944619,79.558,79.541,0.5]
[1771863990875,0.9160667,79.557,79.541,0.5]
[1771863991775,0.4160667,79.557,79.541,0.5]
[1771863993780,12.56976218,79.556,79.541,0.5]
[1771863995165,12.56976218,79.556,79.541,1.41485952]
[1771863995364,12.56976218,79.556,79.541,0.5]
[1771863995785,43.98863835,79.566,79.541,0.5]
[1771863995989,0.9160667,79.565,79.541,0.5]
[1771863996895,43.98863835,79.566,79.541,0.5]
[1771863996896,0.9160667,79.59,79.551,0.91485952]
[1771863997186,0.9160667,79.589,79.551,0.91485952]
[1771863998179,12.56470824,79.588,79.552,12.5703942]
[1771863998371,12.56470824,79.588,79.541,0.5]
[1771863998372,0.9160667,79.579,79.547,0.91485952]
[1771863998685,14.32548666,79.58,79.547,0.91485952]
[1771863998894,0.9160667,79.579,79.547,0.91485952]
[1771863999506,0.9160667,79.577,79.548,13.48588581]
[1771863999671,0.9160667,79.577,79.549,0.91485952]
[1771864000987,0.9160667,79.569,79.543,12.57174355]
[1771864001186,0.9160667,79.569,79.541,1.41485952]
[1771864001391,0.9160667,79.569,79.541,13.98693303]
[1771864001575,12.56786647,79.568,79.542,0.91485952]
[1771864004489,0.9160667,79.574,79.542,0.91485952]
[1771864005287,0.9160667,79.59,79.551,0.91485952]
[1771864005868,12.56297189,79.599,79.571,0.91485952]
[1771864006072,0.9160667,79.598,79.571,0.91485952]
[1771864006376,0.9160667,79.598,79.56,14.32548666]
[1771864006377,12.56169901,79.608,79.573,0.91485952]
[1771864006577,0.9160667,79.607,79.573,0.41485952]
[1771864007597,0.9160667,79.607,79.572,12.48209422]
[1771864007775,0.94659378,79.605,79.57,14.32548666]
[1771864008804,0.94659378,79.605,79.563,31.42135411]
[1771864009692,0.94659378,79.605,79.564,0.64255996]
[1771864009989,0.94659378,79.603,79.57,14.96804662]
[1771864010398,0.94659378,79.603,79.57,14.32548666]
[1771864010891,0.94659378,79.603,79.57,14.96903951]
[1771864011070,0.94659378,79.612,79.571,0.64355285]
[1771864011577,0.94659378,79.609,79.571,0.64355285]
[1771864011775,0.94659378,79.589,79.556,12.56976218]
[1771864012096,0.94659378,79.609,79.561,0.6447555]
[1771864012294,13.50798759,79.609,79.571,0.6447555]
[1771864012482,13.50798759,79.609,79.581,0.64614558]
[1771864012676,0.94659378,79.608,79.573,0.64614558]
[1771864013491,0.94659378,79.608,79.565,0.64774031]
[1771864013716,0.94659378,79.599,79.565,0.64774031]
[1771864013896,0.94659378,79.587,79.556,12.56976218]
[1771864014693,12.56470824,79.588,79.541,0.5]
[1771864014694,0.94659378,79.579,79.549,12.57073624]
[1771864015395,0.94659378,79.587,79.551,0.65087504]
[1771864015895,0.94659378,79.585,79.552,12.5703942]
[1771864016395,0.94659378,79.585,79.553,0.65241545]
[1771864017880,12.56502399,79.586,79.555,0.65393817]
[1771864018974,0.94659378,79.593,79.561,0.6554434]
[1771864019179,0.94659378,79.593,79.556,12.56976218]
[1771864019375,0.94659378,79.589,79.544,0.65693134]
[1771864019600,0.94659378,79.589,79.543,12.5718165]
[1771864019601,0.94659378,79.579,79.543,12.5718165]
[1771864019893,0.94659378,79.579,79.541,0.5]
[1771864020204,0.94659378,79.569,79.541,0.5]
[1771864020698,0.94659378,79.569,79.553,0.5]
[1771864020894,0.94659378,79.557,79.517,31.43973413]
[1771864021290,0.94659378,79.557,79.517,32.30059595]
[1771864021488,0.94659378,79.557,79.518,0.86086182]
[1771864021685,14.32548666,79.58,79.54,14.32548666]
[1771864021898,31.41243386,79.587,79.541,0.86086182]
[1771864022595,12.56439251,79.59,79.573,0.5]
[1771864022800,14.32548666,79.6,79.573,0.5]
[1771864022981,14.32548666,79.59,79.553,0.86086182]
[1771864023178,14.32548666,79.58,79.549,12.57082468]
[1771864023401,14.32548666,79.58,79.546,0.86086182]
[1771864023712,0.94659378,79.579,79.548,0.86086182]
[1771864024093,14.32548666,79.57,79.54,0.86086182]
[1771864024407,0.94659378,79.569,79.535,12.57307388]
[1771864024905,0.94659378,79.569,79.536,0.86086182]
[1771864025101,14.32548666,79.58,79.538,0.86086182]
[1771864025102,0.94659378,79.567,79.538,0.86086182]
[1771864027107,0.94659378,79.567,79.539,12.57244873]
[1771864027297,0.94659378,79.59,79.561,0.86086182]
[1771864027804,12.56281407,79.6,79.57,14.32548666]
[1771864028002,64.56423847,79.62,79.571,0.86086182]
[1771864028306,14.32548666,79.61,79.571,0.86086182]
[1771864028490,31.40106164,79.616,79.571,0.86086182]
[1771864028910,12.55981612,79.619,79.58,14.32548666]
[1771864029088,12.55981612,79.619,79.581,0.86086182]
[1771864029402,12.55769498,79.633,79.591,0.86086182]
[1771864029586,12.55769498,79.633,79.601,0.86086182]
[1771864030486,0.94659378,79.632,79.591,0.86086182]
[1771864030904,0.1,79.64,79.62,14.32548666]
[1771864031087,0.1,79.65,79.631,0.86086182]
[1771864031294,12.55209117,79.668,79.641,0.86086182]
[1771864031506,0.94659378,79.667,79.641,0.86086182]
[1771864032317,0.94659378,79.667,79.633,0.86086182]
[1771864032807,0.94659378,79.667,79.626,12.5587059]
[1771864032989,0.94659378,79.667,79.627,0.86086182]
[1771864033190,0.94659378,79.665,79.631,13.41878524]
[1771864033411,0.94659378,79.665,79.632,0.86086182]
[1771864034992,0.94659378,79.659,79.627,12.55850966]
[1771864035809,0.94659378,79.657,79.621,0.86086182]
[1771864036106,0.94659378,79.657,79.58,50.26334802]
[1771864036107,0.94659378,79.639,79.609,0.86086182]
[1771864036288,12.55366692,79.658,79.621,0.86086182]
[1771864036486,0.94659378,79.662,79.631,0.86086182]
[1771864037196,0.5,79.657,79.631,0.86086182]
[1771864037915,0.5,79.647,79.631,0.86086182]
[1771864038486,12.55555834,79.646,79.624,0.96067792]
[1771864039386,0.93209448,79.645,79.608,0.96067792]
[1771864039602,0.93209448,79.645,79.611,0.96067792]
[1771864040110,13.45048276,79.644,79.613,0.96800451]
[1771864040307,0.89460913,79.644,79.621,0.96800451]
[1771864040806,0.5,79.647,79.621,0.96800451]
[1771864041007,0.5,79.647,79.631,0.96800451]
[1771864045003,0.5,79.647,79.632,12.55776572]
[1771864045211,0.5,79.647,79.633,0.96800451]
[1771864045411,13.44659781,79.669,79.641,0.96800451]
[1771864045610,0.1,79.67,79.651,0.96800451]
[1771864046409,0.1,79.7,79.664,3.69383402]
[1771864046714,14.52548666,79.73,79.69,14.32548666]
[1771864046715,1.13579201,79.72,79.69,14.32548666]
[1771864047024,0.2,79.72,79.7,14.32548666]
[1771864047316,1e-08,79.72,79.701,12.54689401]
[1771864047496,1e-08,79.72,79.702,0.08119625]
[1771864047924,0.93579201,79.738,79.71,14.26218155]
[1771864048113,0.93579201,79.738,79.701,43.91412905]
[1771864048319,0.93579201,79.736,79.701,43.91412905]
[1771864048614,0.93579201,79.736,79.71,14.26218155]
[1771864049405,0.93579201,79.734,79.69,31.37151724]
[1771864049610,0.93579201,79.734,79.7,14.26218155]
[1771864050008,0.93579201,79.729,79.68,14.26218155]
[1771864050226,0.93579201,79.719,79.675,0.08182408]
[1771864050421,0.93579201,79.719,79.68,14.26218155]
[1771864050724,0.93579201,79.719,79.7,14.26218155]
[1771864051120,0.93579201,79.719,79.659,156.91886665]
[1771864051121,0.93579201,79.719,79.68,14.26218155]
[1771864051303,0.93579201,79.719,79.69,14.26218155]
[1771864051501,0.93579201,79.719,79.691,12.54846845]
[1771864051701,12.54421836,79.718,79.691,12.54846845]
[1771864051906,0.93579201,79.717,79.691,12.54846845]
[1771864052326,0.93579201,79.717,79.7,14.26218155]
[1771864052520,0.93579201,79.734,79.699,0.08646787]
[1771864052713,0.93579201,79.734,79.71,14.26218155]
[1771864053430,0.93579201,79.742,79.71,14.26218155]
[1771864053632,0.93579201,79.742,79.711,12.54531996]
[1771864054009,0.93579201,79.742,79.72,14.26218155]
[1771864055526,0.93579201,79.758,79.731,12.54217305]
[1771864056631,0.93579201,79.769,79.709,0.09520649]
[1771864056831,0.93579201,79.749,79.71,58.17135228]
[1771864057217,0.93579201,79.749,79.72,14.26218155]
[1771864057418,0.93579201,79.749,79.71,58.17135228]
[1771864057619,0.93579201,79.758,79.73,14.26218155]
[1771864057916,0.93579201,79.758,79.721,12.54374631]
[1771864058310,0.93579201,79.758,79.73,14.26218155]
[1771864058516,0.93579201,79.758,79.721,43.90311209]
[1771864059522,0.93579201,79.756,79.72,14.26218155]
[1771864059816,0.93579201,79.756,79.721,12.54374631]
[1771864060925,0.93579201,79.749,79.711,12.54531996]
[1771864061122,0.93579201,79.749,79.711,0.10355048]
[1771864061327,0.93579201,79.749,79.71,14.26218155]
[1771864061738,0.93579201,79.747,79.711,12.54531996]
[1771864062429,116.50902297,79.777,79.711,12.54531996]
[1771864062430,0.93579201,79.767,79.74,14.26218155]
[1771864062632,0.93579201,79.766,79.74,14.26218155]
[1771864062834,0.93579201,79.766,79.723,0.1075801]
[1771864063025,0.93579201,79.766,79.73,14.26218155]
[1771864063226,0.93579201,79.766,79.74,14.26218155]
[1771864063743,0.93579201,79.764,79.74,14.26218155]
[1771864063942,0.93579201,79.764,79.73,12.54228815]
[1771864064144,0.93579201,79.764,79.74,14.26218155]
[1771864064727,0.93579201,79.783,79.751,0.11151768]
[1771864064926,0.93579201,79.783,79.77,14.26218155]
[1771864065138,0.93579201,79.783,79.751,0.11151768]
[1771864065139,0.93579201,79.782,79.76,14.26218155]
[1771864065926,12.53431268,79.781,79.76,14.26218155]
[1771864066224,12.53172589,79.798,79.77,14.26218155]
[1771864066432,0.93579201,79.797,79.78,14.26218155]
[1771864067051,0.1,79.8,79.78,14.26218155]
[1771864067236,0.1,79.8,79.79,14.26218155]
[1771864067427,14.26218155,79.81,79.77,14.26218155]
[1771864067627,0.93579201,79.809,79.77,14.26218155]
[1771864067828,0.94408647,79.807,79.77,26.79817637]
[1771864068142,0.94408647,79.789,79.75,14.26218155]
[1771864068332,0.94408647,79.789,79.77,14.26218155]
[1771864068927,0.94408647,79.789,79.76,14.26218155]
[1771864069123,0.94408647,79.789,79.77,14.26218155]
[1771864069323,0.94408647,79.789,79.744,43.89044943]
[1771864069324,0.94408647,79.789,79.75,14.26218155]
[1771864069545,0.94408647,79.789,79.76,14.26218155]
[1771864070131,0.94408647,79.787,79.761,12.53745564]
[1771864070445,0.94408647,79.787,79.77,14.26218155]
[1771864071644,12.53193762,79.797,79.77,14.26218155]
[1771864071951,31.32502861,79.809,79.77,14.26218155]
[1771864071952,0.94408647,79.796,79.77,14.26218155]
[1771864072158,0.94408647,79.815,79.79,14.26218155]
[1771864072532,0.94408647,79.815,79.78,14.26218155]
[1771864072730,0.94408647,79.815,79.771,12.53588396]
[1771864072934,0.94408647,79.809,79.78,14.26218155]
[1771864073230,0.94408647,79.809,79.771,12.53588396]
[1771864073658,0.94408647,79.799,79.767,12.53642693]
[1771864073833,0.94408647,79.799,79.77,14.26218155]
[1771864074931,0.94408647,79.828,79.79,14.26218155]
[1771864075250,43.83822441,79.839,79.77,106.55623492]
[1771864075251,0.94408647,79.819,79.78,14.26218155]
[1771864076749,0.94408647,79.809,79.77,58.13821088]
[1771864077051,0.94408647,79.797,79.767,0.5]
[1771864077560,0.94408647,79.797,79.777,0.5]
[1771864078048,0.94408647,79.795,79.767,0.5]
[1771864078347,0.94408647,79.789,79.767,0.5]
[1771864078935,0.94408647,79.779,79.743,0.13832036]
[1771864079336,0.94408647,79.779,79.75,14.26218155]
[1771864079645,0.94408647,79.779,79.76,14.26218155]
[1771864079947,0.94408647,79.795,79.76,14.26218155]
[1771864080444,0.94408647,79.795,79.761,43.88109476]
[1771864080753,0.94408647,79.798,79.77,14.40373738]
[1771864080937,0.94408647,79.809,79.79,14.26218155]
[1771864081140,0.94408647,79.817,79.79,14.26218155]
[1771864081433,0.94408647,79.827,79.8,14.26218155]
[1771864082227,0.94408647,79.827,79.765,0.1447174]
[1771864082427,0.94408647,79.819,79.78,14.26218155]
[1771864082630,0.94408647,79.817,79.781,12.53431268]
[1771864083055,0.94408647,79.826,79.79,14.26218155]
[1771864083259,0.94408647,79.826,79.8,14.26218155]
[1771864084141,0.94408647,79.825,79.79,14.26218155]
[1771864084532,0.94408647,79.823,79.791,12.53274178]
[1771864084733,0.94408647,79.819,79.791,12.53274178]
[1771864085044,0.94408647,79.827,79.791,0.14780676]
[1771864085443,0.94408647,79.827,79.79,14.26218155]
[1771864085760,0.94408647,79.819,79.782,43.8695445]
[1771864085934,0.94408647,79.809,79.782,12.53415557]
[1771864086663,0.94408647,79.799,79.77,12.53594815]
[1771864086838,0.94408647,79.789,79.759,12.53777003]
[1771864087039,0.94408647,79.789,79.754,12.53842259]
[1771864088258,43.8552526,79.808,79.76,14.26218155]
[1771864088558,0.94408647,79.799,79.76,14.26218155]
[1771864088776,3.69383402,79.823,79.751,12.53902772]
[1771864088777,0.94408647,79.779,79.751,12.53902772]
[1771864089264,0.94408647,79.798,79.77,14.26218155]
[1771864090463,0.94408647,79.789,79.751,43.88659702]
[1771864090955,0.94408647,79.779,79.751,12.53902772]
[1771864091153,0.94408647,79.779,79.743,12.54028566]
[1771864091756,0.94408647,79.779,79.743,43.89099982]
[1771864092666,0.94408647,79.778,79.743,43.89099982]
[1771864092965,0.94408647,79.769,79.741,12.54060019]
[1771864093259,0.94408647,79.769,79.73,14.26218155]
[1771864093563,0.94408647,79.739,79.713,12.54499548]
[1771864093854,0.94408647,79.739,79.71,14.26218155]
[1771864094236,0.94408647,79.739,79.718,12.54413115]
[1771864094437,0.94408647,79.739,79.71,14.26218155]
[1771864094636,14.26218155,79.75,79.718,12.54418648]
[1771864094864,0.94408647,79.758,79.731,12.54217305]
[1771864095562,0.94408647,79.756,79.727,12.54279907]
[1771864095758,0.94408647,79.749,79.704,0.16357933]
[1771864095951,14.26218155,79.73,79.702,12.54673659]
[1771864096150,0.94408647,79.729,79.702,12.54673659]
[1771864097065,0.94408647,79.739,79.701,0.92317332]
[1771864097264,0.94408647,79.748,79.71,14.26218155]
[1771864097443,0.94408647,79.748,79.72,14.26218155]
[1771864097759,1.01797571,79.758,79.721,1.0002121]
[1771864098350,1.01797571,79.757,79.721,1.0002121]
[1771864100065,0.95491311,79.755,79.722,12.54358897]
[1771864101243,0.95491311,79.749,79.715,12.54463455]
[1771864102357,14.26218155,79.74,79.715,12.54463455]
[1771864104142,0.95491311,79.747,79.715,12.54463455]
[1771864106660,0.95491311,79.747,79.716,0.95756858]
[1771864106962,0.95491311,79.746,79.716,0.95756858]
[1771864107261,0.95491311,79.746,79.715,12.54463455]
[1771864107865,0.95491311,79.739,79.715,12.54463455]
[1771864108061,0.95491311,79.739,79.712,31.36290646]
[1771864108759,0.95491311,79.739,79.709,12.54563474]
[1771864109554,0.95491311,79.737,79.709,12.54563474]
[1771864109750,0.95491311,79.737,79.7,15.22049977]
[1771864109951,0.95491311,79.737,79.7,0.95756858]
[1771864110467,0.95491311,79.735,79.701,12.54689401]
[1771864111146,14.26293119,79.71,79.67,14.26293119]
[1771864111354,0.95491311,79.712,79.681,0.95756858]
[1771864111555,0.95491311,79.735,79.701,0.95756858]
[1771864111758,0.95491311,79.749,79.711,0.95756858]
[1771864112068,0.95491311,79.746,79.711,0.95756858]
[1771864112567,14.26293119,79.878,79.68,14.26293119]
[1771864112568,0.95491311,79.757,79.721,0.95756858]
[1771864112748,0.95491311,79.757,79.731,0.95756858]
[1771864113269,0.5,79.769,79.712,12.54516258]
[1771864113270,0.5,79.769,79.741,0.95756858]
[1771864113572,13.03627823,79.769,79.741,0.95756858]
[1771864113945,13.03627823,79.769,79.751,0.95756858]
[1771864113946,0.5,79.769,79.751,0.95756858]
[1771864114244,12.53296737,79.79,79.76,14.26293119]
[1771864114573,12.53296737,79.79,79.761,12.53745564]
[1771864114754,12.53296737,79.79,79.762,0.95756858]
[1771864115065,14.26293119,79.8,79.761,12.53745564]
[1771864115066,0.95491311,79.8,79.771,0.95756858]
[1771864115455,0.95491311,79.81,79.78,14.26293119]
[1771864115658,0.95491311,79.81,79.78,15.22049977]
[1771864115875,0.95491311,79.81,79.781,0.95756858]
[1771864116368,0.95491311,79.829,79.8,14.26293119]
[1771864116558,13.48171303,79.829,79.8,14.26293119]
[1771864116870,0.95491311,79.828,79.795,12.53198527]
[1771864117044,0.95491311,79.828,79.761,162.98692342]
[1771864117045,0.95491311,79.819,79.781,0.95756858]
[1771864117246,0.95491311,79.819,79.782,0.95756858]
[1771864118457,0.95491311,79.809,79.77,26.7989035]
[1771864118656,50.10433074,79.834,79.735,50.16593869]
[1771864118657,0.95491311,79.815,79.771,0.95756858]
[1771864118862,0.95491311,79.809,79.78,14.26293119]
[1771864120570,0.95491311,79.809,79.772,12.53572682]
[1771864120754,0.95491311,79.807,79.765,0.95756858]
[1771864120956,0.95491311,79.807,79.764,12.5369841]
[1771864121358,0.95491311,79.807,79.773,0.5]
[1771864121873,62.63532891,79.828,79.773,0.5]
[1771864121874,167.8,79.863,79.8,14.26293119]
[1771864122077,0.95491311,79.845,79.81,14.26293119]
[1771864122277,0.95491311,79.839,79.801,0.95756858]
[1771864122575,0.95491311,79.839,79.8,14.26293119]
[1771864122770,0.95491311,79.837,79.801,12.53117128]
[1771864123476,0.95491311,79.837,79.81,14.26293119]
[1771864123679,0.95491311,79.837,79.811,0.95756858]
[1771864123875,0.95491311,79.837,79.801,44.81666808]
[1771864124561,0.95491311,79.837,79.802,0.95756858]
[1771864124879,0.95491311,79.869,79.832,0.95756858]
[1771864125086,0.95491311,79.869,79.84,14.26293119]
[1771864125260,0.95491311,79.869,79.831,12.52646215]